fUST/lending_fUST_20260511
["ID","MTS","AMOUNT","RATE_DAILY","PERIOD"]
[422019501,1778476240000,-796.58,0.00011506,2]
[422019495,1778476240000,-500.0,0.00011506,2]
[422019493,1778476240000,-500.0,0.00011506,2]
[422019492,1778476240000,-516.73,0.00011506,2]
[422019490,1778476240000,-500.0,0.00011506,2]
[422019487,1778476240000,-500.0,0.00011506,2]
[422019496,1778476240000,-611.14,0.00011506,2]
[422019507,1778476240000,-1141.07,0.00011506,2]
[422019515,1778476240000,-803.63,0.00011506,2]
[422019506,1778476240000,-1003.35,0.00011506,2]
[422019510,1778476240000,-500.0,0.00011506,2]
[422019508,1778476240000,-500.0,0.00011506,2]
[422019511,1778476240000,-500.0,0.00011506,2]
[422019509,1778476240000,-763.15,0.00011506,2]
[422019523,1778476240000,-500.0,0.00011506,2]
[422019526,1778476240000,-1254.46,0.00011506,2]
[422019525,1778476240000,-522.81,0.00011506,2]
[422019524,1778476240000,-1126.11,0.00011506,2]
[422019516,1778476240000,-500.0,0.00011506,2]
[422019527,1778476240000,-1025.86,0.00011506,2]
[422019528,1778476240000,-628.2,0.00011506,2]
[422019491,1778476240000,-500.0,0.00011506,2]
[422019517,1778476240000,-1053.42,0.00011506,2]
[422019504,1778476240000,-164.10865992,0.00011506,2]
[422019497,1778476240000,-500.0,0.00011506,2]
[422019484,1778476240000,-578.80120529,0.00011506,2]
[422019489,1778476240000,-500.0,0.00011506,2]
[422019522,1778476240000,-500.0,0.00011506,2]
[422019458,1778476240000,-1126.11,0.00011232,2]
[422019460,1778476240000,-522.81,0.00011232,2]
[422019462,1778476240000,-1254.46,0.00011232,2]
[422019464,1778476240000,-1025.86,0.00011232,2]
[422019469,1778476240000,-500.0,0.00011232,2]
[422019468,1778476240000,-500.0,0.00011232,2]
[422019471,1778476240000,-668.65185757,0.00011281,2]
[422019454,1778476240000,-500.0,0.00011232,2]
[422019456,1778476240000,-500.0,0.00011232,2]
[422019452,1778476240000,-810.42,0.00011232,2]
[422019466,1778476240000,-628.2,0.00011232,2]
[422019473,1778476240000,-1672.2418,0.00011506,2]
[422019483,1778476240000,-500.0,0.00011506,2]
[422019486,1778476240000,-500.0,0.00011506,2]
[422019485,1778476240000,-611.39757308,0.00011506,2]
[422019472,1778476240000,-480.26263692,0.00011412,2]
[422019475,1778476240000,-500.0,0.00011506,2]
[422019474,1778476240000,-204.76,0.00011506,2]
[422019482,1778476240000,-500.0,0.00011506,2]
[422019479,1778476240000,-500.0,0.00011506,2]
[422019477,1778476240000,-560.1215525,0.00011506,2]
[422019481,1778476240000,-500.0,0.00011506,2]
[422019478,1778476240000,-500.0,0.00011506,2]
[422019476,1778476240000,-500.0,0.00011506,2]
[422019480,1778476240000,-500.0,0.00011506,2]
[422019488,1778476240000,-500.0,0.00011506,2]
[422019498,1778476240000,-500.0,0.00011506,2]
[422019499,1778476240000,-500.0,0.00011506,2]
[422019500,1778476240000,-1170.41,0.00011506,2]
[422019519,1778476240000,-500.0,0.00011506,2]
[422019470,1778476240000,-506.11991675,0.00011241,2]
[422019518,1778476240000,-575.11,0.00011506,2]
[422019561,1778476240000,-500.0,0.0001178,2]
[422019566,1778476240000,-803.63,0.0001178,2]
[422019562,1778476240000,-500.0,0.0001178,2]
[422019559,1778476240000,-500.0,0.0001178,2]
[422019565,1778476240000,-500.0,0.0001178,2]
[422019567,1778476240000,-500.0,0.0001178,2]
[422019568,1778476240000,-1053.42,0.0001178,2]
[422019569,1778476240000,-575.11,0.0001178,2]
[422019571,1778476240000,-810.42,0.0001178,2]
[422019582,1778476240000,-348.793,0.000118,2]
[422019585,1778476240000,-152.0,0.00011884,7]
[422019581,1778476240000,-151.0,0.000118,2]
[422019584,1778476240000,-152.0,0.00011884,7]
[422019574,1778476240000,-1126.11,0.0001178,2]
[422019564,1778476240000,-500.0,0.0001178,2]
[422019570,1778476240000,-500.0,0.0001178,2]
[422019576,1778476240000,-1254.46,0.0001178,2]
[422019579,1778476240000,-500.0,0.0001178,2]
[422019575,1778476240000,-522.81,0.0001178,2]
[422019578,1778476240000,-628.2,0.0001178,2]
[422019577,1778476240000,-1025.86,0.0001178,2]
[422019587,1778476240000,-152.0,0.00011884,7]
[422019589,1778476240000,-152.0,0.00011884,7]
[422019586,1778476240000,-152.0,0.00011884,7]
[422019593,1778476240000,-152.0,0.00011888,7]
[422019588,1778476240000,-152.0,0.00011884,7]
[422019592,1778476240000,-152.0,0.00011888,7]
[422019591,1778476240000,-152.0,0.00011888,7]
[422019590,1778476240000,-152.0,0.00011888,7]
[422019520,1778476240000,-500.0,0.00011506,2]
[422019573,1778476240000,-500.0,0.0001178,2]
[422019563,1778476240000,-500.0,0.0001178,2]
[422019572,1778476240000,-500.0,0.0001178,2]
[422019558,1778476240000,-1141.07,0.0001178,2]
[422019521,1778476240000,-810.42,0.00011506,2]
[422019560,1778476240000,-763.15,0.0001178,2]
[422019531,1778476240000,-746.0,0.00011603,2]
[422019529,1778476240000,-500.0,0.00011506,2]
[422019533,1778476240000,-443.0,0.00011603,2]
[422019532,1778476240000,-185.0,0.00011603,2]
[422019540,1778476240000,-500.0,0.0001178,2]
[422019541,1778476240000,-500.0,0.0001178,2]
[422019530,1778476240000,-649.964,0.00011603,2]
[422019542,1778476240000,-500.0,0.0001178,2]
[422019537,1778476240000,-500.0,0.0001178,2]
[422019535,1778476240000,-1131.6309,0.0001178,2]
[422019538,1778476240000,-500.0,0.0001178,2]
[422019536,1778476240000,-500.0,0.0001178,2]
[422019534,1778476240000,-540.6109,0.0001178,2]
[422019539,1778476240000,-500.0,0.0001178,2]
[422019543,1778476240000,-500.0,0.0001178,2]
[422019556,1778476240000,-5312.99,0.0001178,2]
[422019544,1778476240000,-500.0,0.0001178,2]
[422019551,1778476240000,-500.0,0.0001178,2]
[422019550,1778476240000,-500.0,0.0001178,2]
[422019553,1778476240000,-1170.41,0.0001178,2]
[422019552,1778476240000,-500.0,0.0001178,2]
[422019549,1778476240000,-611.14,0.0001178,2]
[422019557,1778476240000,-1003.35,0.0001178,2]
[422019547,1778476240000,-516.73,0.0001178,2]
[422019546,1778476240000,-500.0,0.0001178,2]
[422019545,1778476240000,-500.0,0.0001178,2]
[422019555,1778476240000,-500.0,0.0001178,2]
[422019554,1778476240000,-796.58,0.0001178,2]
[422019548,1778476240000,-500.0,0.0001178,2]
[422019634,1778476241000,-500.0,0.00012054,2]
[422019644,1778476241000,-500.0,0.00012054,2]
[422019641,1778476241000,-500.0,0.00012054,2]
[422019642,1778476241000,-1053.42,0.00012054,2]
[422019635,1778476241000,-763.15,0.00012054,2]
[422019637,1778476241000,-500.0,0.00012054,2]
[422019632,1778476241000,-1141.07,0.00012054,2]
[422019628,1778476241000,-1170.41,0.00012054,2]
[422019630,1778476241000,-500.0,0.00012054,2]
[422019631,1778476241000,-5312.99,0.00012054,2]
[422019627,1778476241000,-500.0,0.00012054,2]
[422019639,1778476241000,-500.0,0.00012054,2]
[422019633,1778476241000,-1003.35,0.00012054,2]
[422019636,1778476241000,-500.0,0.00012054,2]
[422019650,1778476241000,-1254.46,0.00012054,2]
[422019645,1778476241000,-810.42,0.00012054,2]
[422019638,1778476241000,-355.40357321,0.00012054,2]
[422019643,1778476241000,-575.11,0.00012054,2]
[422019647,1778476241000,-500.0,0.00012054,2]
[422019648,1778476241000,-1126.11,0.00012054,2]
[422019646,1778476241000,-500.0,0.00012054,2]
[422019657,1778476241000,-1137.63664,0.00012183,2]
[422019649,1778476241000,-522.81,0.00012054,2]
[422019659,1778476241000,-1137.63664,0.00012183,2]
[422019658,1778476241000,-1137.63664,0.00012183,2]
[422019651,1778476241000,-1025.86,0.00012054,2]
[422019654,1778476241000,-151.0,0.000121,2]
[422019655,1778476241000,-1137.63664,0.00012183,2]
[422019629,1778476241000,-796.58,0.00012054,2]
[422019640,1778476241000,-803.63,0.00012054,2]
[422019626,1778476241000,-500.0,0.00012054,2]
[422019594,1778476241000,-152.0,0.00011888,7]
[422019624,1778476241000,-611.14,0.00012054,2]
[422019652,1778476241000,-628.2,0.00012054,2]
[422019596,1778476241000,-152.0,0.00011892,7]
[422019597,1778476241000,-151.0,0.000119,2]
[422019598,1778476241000,-160.0,0.000119,3]
[422019604,1778476241000,-1194.518472,0.00012053,2]
[422019606,1778476241000,-1194.518472,0.00012053,2]
[422019605,1778476241000,-1194.518472,0.00012053,2]
[422019599,1778476241000,-160.0,0.000119,4]
[422019601,1778476241000,-355.04069333,0.00012053,2]
[422019595,1778476241000,-152.0,0.00011892,7]
[422019602,1778476241000,-1194.518472,0.00012053,2]
[422019600,1778476241000,-151.0,0.00012,2]
[422019603,1778476241000,-1194.518472,0.00012053,2]
[422019608,1778476241000,-1194.518472,0.00012053,2]
[422019623,1778476241000,-500.0,0.00012054,2]
[422019618,1778476241000,-500.0,0.00012054,2]
[422019613,1778476241000,-500.0,0.00012054,2]
[422019609,1778476241000,-1194.518472,0.00012053,2]
[422019612,1778476241000,-500.0,0.00012054,2]
[422019619,1778476241000,-500.0,0.00012054,2]
[422019610,1778476241000,-1194.518472,0.00012053,2]
[422019607,1778476241000,-1194.518472,0.00012053,2]
[422019614,1778476241000,-500.0,0.00012054,2]
[422019616,1778476241000,-500.0,0.00012054,2]
[422019617,1778476241000,-500.0,0.00012054,2]
[422019615,1778476241000,-500.0,0.00012054,2]
[422019620,1778476241000,-500.0,0.00012054,2]
[422019621,1778476241000,-500.0,0.00012054,2]
[422019622,1778476241000,-516.73,0.00012054,2]
[422019625,1778476241000,-500.0,0.00012054,2]
[422019611,1778476241000,-1672.2418,0.00012054,2]
[422019653,1778476241000,-500.0,0.00012054,2]
[422019665,1778476241000,-1137.63664,0.00012183,2]
[422019660,1778476241000,-1137.63664,0.00012183,2]
[422019694,1778476241000,-500.0,0.00012328,2]
[422019695,1778476241000,-500.0,0.00012328,2]
[422019696,1778476241000,-1170.41,0.00012328,2]
[422019698,1778476241000,-500.0,0.00012328,2]
[422019697,1778476241000,-796.58,0.00012328,2]
[422019702,1778476241000,-500.0,0.00012328,2]
[422019712,1778476241000,-810.42,0.00012328,2]
[422019713,1778476241000,-500.0,0.00012328,2]
[422019701,1778476241000,-1003.35,0.00012328,2]
[422019703,1778476241000,-763.15,0.00012328,2]
[422019704,1778476241000,-500.0,0.00012328,2]
[422019714,1778476241000,-500.0,0.00012328,2]
[422019708,1778476241000,-500.0,0.00012328,2]
[422019705,1778476241000,-500.0,0.00012328,2]
[422019693,1778476241000,-500.0,0.00012328,2]
[422019706,1778476241000,-500.0,0.00012328,2]
[422019707,1778476241000,-803.63,0.00012328,2]
[422019710,1778476241000,-575.11,0.00012328,2]
[422019709,1778476241000,-1053.42,0.00012328,2]
[422019715,1778476241000,-1126.11,0.00012328,2]
[422019717,1778476241000,-1254.46,0.00012328,2]
[422019719,1778476241000,-628.2,0.00012328,2]
[422019656,1778476241000,-1137.63664,0.00012183,2]
[422019724,1778476241000,-151.0,0.000124,2]
[422019716,1778476241000,-522.81,0.00012328,2]
[422019722,1778476241000,-152.0,0.00012343,30]
[422019721,1778476241000,-152.0,0.00012343,30]
[422019718,1778476241000,-1025.86,0.00012328,2]
[422019725,1778476241000,-151.0,0.000125,2]
[422019723,1778476241000,-152.0,0.00012367,30]
[422019711,1778476241000,-500.0,0.00012328,2]
[422019691,1778476241000,-161.64257801,0.00012328,2]
[422019720,1778476241000,-534.12782723,0.00012328,2]
[422019690,1778476241000,-516.73,0.00012328,2]
[422019692,1778476241000,-611.14,0.00012328,2]
[422019662,1778476241000,-1137.63664,0.00012183,2]
[422019671,1778476241000,-152.0,0.00012254,2]
[422019673,1778476241000,-152.0,0.00012258,2]
[422019663,1778476241000,-1137.63664,0.00012183,2]
[422019661,1778476241000,-1137.63664,0.00012183,2]
[422019672,1778476241000,-152.0,0.00012254,2]
[422019670,1778476241000,-9597.9680549,0.00012184,2]
[422019668,1778476241000,-1137.63664,0.00012183,2]
[422019667,1778476241000,-1137.63664,0.00012183,2]
[422019666,1778476241000,-1137.63664,0.00012183,2]
[422019669,1778476241000,-1137.63664,0.00012183,2]
[422019675,1778476241000,-720.0,0.00012294,2]
[422019678,1778476241000,-152.0,0.0001232,30]
[422019674,1778476241000,-152.0,0.00012262,2]
[422019664,1778476241000,-1137.63664,0.00012183,2]
[422019677,1778476241000,-152.0,0.0001232,30]
[422019700,1778476241000,-1141.07,0.00012328,2]
[422019686,1778476241000,-500.0,0.00012328,2]
[422019699,1778476241000,-5312.99,0.00012328,2]
[422019688,1778476241000,-500.0,0.00012328,2]
[422019680,1778476241000,-500.0,0.00012328,2]
[422019681,1778476241000,-500.0,0.00012328,2]
[422019689,1778476241000,-500.0,0.00012328,2]
[422019684,1778476241000,-500.0,0.00012328,2]
[422019683,1778476241000,-500.0,0.00012328,2]
[422019685,1778476241000,-500.0,0.00012328,2]
[422019679,1778476241000,-540.6109,0.00012328,2]
[422019687,1778476241000,-500.0,0.00012328,2]
[422019682,1778476241000,-500.0,0.00012328,2]
[422019676,1778476241000,-151.0,0.000123,2]
[422019761,1778476242000,-500.0,0.00012602,2]
[422019754,1778476242000,-500.0,0.00012602,2]
[422019760,1778476242000,-810.42,0.00012602,2]
[422019755,1778476242000,-803.63,0.00012602,2]
[422019766,1778476242000,-1025.86,0.00012602,2]
[422019765,1778476242000,-1254.46,0.00012602,2]
[422019751,1778476242000,-763.15,0.00012602,2]
[422019764,1778476242000,-522.81,0.00012602,2]
[422019748,1778476242000,-1141.07,0.00012602,2]
[422019757,1778476242000,-1053.42,0.00012602,2]
[422019758,1778476242000,-575.11,0.00012602,2]
[422019769,1778476242000,-172.83,0.00012626,2]
[422019762,1778476242000,-500.0,0.00012602,2]
[422019763,1778476242000,-1126.11,0.00012602,2]
[422019756,1778476242000,-500.0,0.00012602,2]
[422019767,1778476242000,-628.2,0.00012602,2]
[422019771,1778476242000,-5000.0,0.00012648,2]
[422019778,1778476242000,-5000.0,0.00012659,2]
[422019772,1778476242000,-5000.0,0.00012648,2]
[422019780,1778476242000,-1551.92988772,0.0001274,2]
[422019770,1778476242000,-7043.02042664,0.00012648,2]
[422019750,1778476242000,-500.0,0.00012602,2]
[422019759,1778476242000,-500.0,0.00012602,2]
[422019749,1778476242000,-1003.35,0.00012602,2]
[422019736,1778476242000,-500.0,0.00012602,2]
[422019747,1778476242000,-5312.99,0.00012602,2]
[422019727,1778476242000,-152.0,0.0001255,2]
[422019726,1778476242000,-171.1,0.00012513,2]
[422019729,1778476242000,-500.0,0.00012602,2]
[422019739,1778476242000,-516.73,0.00012602,2]
[422019728,1778476242000,-151.0,0.000126,2]
[422019740,1778476242000,-611.14,0.00012602,2]
[422019730,1778476242000,-500.0,0.00012602,2]
[422019735,1778476242000,-500.0,0.00012602,2]
[422019731,1778476242000,-500.0,0.00012602,2]
[422019738,1778476242000,-500.0,0.00012602,2]
[422019768,1778476242000,-322.0,0.00012603,3]
[422019737,1778476242000,-500.0,0.00012602,2]
[422019734,1778476242000,-500.0,0.00012602,2]
[422019732,1778476242000,-500.0,0.00012602,2]
[422019741,1778476242000,-500.0,0.00012602,2]
[422019742,1778476242000,-500.0,0.00012602,2]
[422019752,1778476242000,-500.0,0.00012602,2]
[422019744,1778476242000,-1170.41,0.00012602,2]
[422019743,1778476242000,-500.0,0.00012602,2]
[422019753,1778476242000,-500.0,0.00012602,2]
[422019746,1778476242000,-500.0,0.00012602,2]
[422019745,1778476242000,-796.58,0.00012602,2]
[422019733,1778476242000,-500.0,0.00012602,2]
[422019779,1778476242000,-5000.0,0.00012659,2]
[422019808,1778476242000,-763.15,0.00012876,2]
[422019773,1778476242000,-5000.0,0.00012648,2]
[422019804,1778476242000,-5312.99,0.00012876,2]
[422019809,1778476242000,-500.0,0.00012876,2]
[422019806,1778476242000,-1141.07,0.00012876,2]
[422019805,1778476242000,-1003.35,0.00012876,2]
[422019810,1778476242000,-500.0,0.00012876,2]
[422019814,1778476242000,-500.0,0.00012876,2]
[422019818,1778476242000,-575.11,0.00012876,2]
[422019819,1778476242000,-500.0,0.00012876,2]
[422019823,1778476242000,-1126.11,0.00012876,2]
[422019817,1778476242000,-1053.42,0.00012876,2]
[422019812,1778476242000,-803.63,0.00012876,2]
[422019821,1778476242000,-500.0,0.00012876,2]
[422019822,1778476242000,-500.0,0.00012876,2]
[422019820,1778476242000,-810.42,0.00012876,2]
[422019826,1778476242000,-1025.86,0.00012876,2]
[422019825,1778476242000,-1254.46,0.00012876,2]
[422019828,1778476242000,-151.0,0.000129,2]
[422019827,1778476242000,-628.2,0.00012876,2]
[422019830,1778476242000,-11769.03256905,0.000129,2]
[422019831,1778476242000,-160.0,0.00012959,2]
[422019829,1778476242000,-151.0,0.000129,2]
[422019775,1778476242000,-5000.0,0.00012659,2]
[422019824,1778476242000,-522.81,0.00012876,2]
[422019807,1778476242000,-500.0,0.00012876,2]
[422019811,1778476242000,-500.0,0.00012876,2]
[422019789,1778476242000,-500.0,0.00012876,2]
[422019777,1778476242000,-5000.0,0.00012659,2]
[422019786,1778476242000,-500.0,0.00012876,2]
[422019781,1778476242000,-184.5,0.0001276,2]
[422019782,1778476242000,-151.0,0.000128,2]
[422019784,1778476242000,-152.0,0.0001287,2]
[422019785,1778476242000,-500.0,0.00012876,2]
[422019783,1778476242000,-583.30917936,0.00012833,2]
[422019787,1778476242000,-500.0,0.00012876,2]
[422019788,1778476242000,-302.08006694,0.00012876,2]
[422019802,1778476242000,-796.58,0.00012876,2]
[422019776,1778476242000,-5000.0,0.00012659,2]
[422019791,1778476242000,-500.0,0.00012876,2]
[422019792,1778476242000,-500.0,0.00012876,2]
[422019793,1778476242000,-500.0,0.00012876,2]
[422019794,1778476242000,-500.0,0.00012876,2]
[422019795,1778476242000,-516.73,0.00012876,2]
[422019797,1778476242000,-611.14,0.00012876,2]
[422019799,1778476242000,-500.0,0.00012876,2]
[422019798,1778476242000,-500.0,0.00012876,2]
[422019801,1778476242000,-1170.41,0.00012876,2]
[422019800,1778476242000,-500.0,0.00012876,2]
[422019803,1778476242000,-500.0,0.00012876,2]
[422019790,1778476242000,-500.0,0.00012876,2]
[422019774,1778476242000,-5000.0,0.00012648,2]
[422019832,1778476243000,-458.12353,0.00012959,2]
[422019838,1778476243000,-703602.21086051,0.00013,2]
[422019834,1778476243000,-756.247061,0.00012959,2]
[422019844,1778476243000,-3695.721792,0.00013,2]
[422019846,1778476243000,-62154.23763981,0.00013,2]
[422019842,1778476243000,-24866.94389787,0.00013,2]
[422019862,1778476246000,-1635.24443719,0.00011933,2]
[422019860,1778476246000,-500.0,0.00011506,2]
[422019861,1778476246000,-500.0,0.0001178,2]
[422019858,1778476246000,-500.0,0.00010958,2]
[422019859,1778476246000,-500.0,0.00011232,2]
[422019863,1778476491000,10000.0,0.00019178,120]
[422019864,1778476515000,-700.0,9.801e-05,2]
[422019865,1778476523000,10000.0,0.00019178,120]
[422019866,1778476530000,10000.0,0.00019178,120]
[422019867,1778476546000,8729.0,0.00019178,120]
[422019880,1778476767000,1361.8,0.00019178,120]
[422019881,1778476791000,1361.8,0.00019178,120]
[422019883,1778476816000,1361.8,0.00019178,120]
[422019884,1778476859000,1513.2,0.00019178,120]
[422019886,1778476875000,936.73352508,0.00019178,120]
[422019888,1778476886000,605.2,0.00019178,120]
[422019889,1778476916000,151.4,0.00019178,120]
[422019890,1778476924000,1337.01,0.00019178,120]
[422019891,1778476966000,1815.04,0.00019178,120]
[422019921,1778477432000,-688.9758795,8.955e-05,2]
[422019920,1778477432000,-1200.0,8.954e-05,2]
[422019919,1778477432000,-3393.37127803,8.865e-05,2]
[422019977,1778477441000,-4311.0241205,8.955e-05,2]
[422019986,1778477441000,-264.18765736,0.00010958,2]
[422019978,1778477441000,-341.69557915,9.274e-05,2]
[422019982,1778477441000,-160.0,0.0001,2]
[422019990,1778477441000,-285.04703864,0.00010958,2]
[422019984,1778477441000,-500.0,0.00010958,2]
[422019988,1778477441000,-235.81234264,0.00010958,2]
[422019980,1778477441000,-1051.0,0.0001,2]
[422020032,1778477442000,-240.91296136,0.00010958,2]
[422020034,1778477442000,-500.0,0.00010958,2]
[422020036,1778477442000,-612.14213384,0.00010958,2]
[422020043,1778477442000,-500.0,0.00010958,2]
[422020045,1778477442000,-464.46816128,0.00010958,2]
[422020038,1778477442000,-552.18,0.00010958,2]
[422020048,1778477442000,-500.0,0.00010958,2]
[422020046,1778477442000,-35.53183872,0.00010958,2]
[422020040,1778477442000,-500.0,0.00010958,2]
[422020042,1778477442000,-500.0,0.00010958,2]
[422020050,1778477442000,-296.21384401,0.00010958,2]
[422020044,1778477442000,-500.0,0.00010958,2]
[422020238,1778477443000,-219.30359812,0.00010958,2]
[422020242,1778477443000,-500.0,0.00010958,2]
[422020240,1778477443000,-500.0,0.00010958,2]
[422020233,1778477443000,-500.0,0.00010958,2]
[422020244,1778477443000,-500.0,0.00010958,2]
[422020236,1778477443000,-603.33308739,0.00010958,2]
[422020229,1778477443000,-500.0,0.00010958,2]
[422020227,1778477443000,-791.95084419,0.00010958,2]
[422020220,1778477443000,-797.9436118,0.00010958,2]
[422020231,1778477443000,-500.0,0.00010958,2]
[422020247,1778477443000,-500.0,0.00010958,2]
[422020267,1778477443000,-668.9,0.00010958,2]
[422020255,1778477443000,-500.0,0.00010958,2]
[422020269,1778477443000,-500.0,0.00010958,2]
[422020265,1778477443000,-500.0,0.00010958,2]
[422020261,1778477443000,-551.89,0.00010958,2]
[422020263,1778477443000,-500.0,0.00010958,2]
[422020245,1778477443000,-500.0,0.00010958,2]
[422020251,1778477443000,-500.0,0.00010958,2]
[422020249,1778477443000,-500.0,0.00010958,2]
[422020253,1778477443000,-500.0,0.00010958,2]
[422020257,1778477443000,-863.61,0.00010958,2]
[422020259,1778477443000,-500.0,0.00010958,2]
[422020287,1778477444000,-500.0,0.00010958,2]
[422020272,1778477444000,-234.30059632,0.00010958,2]
[422020270,1778477444000,-3930.13,0.00010958,2]
[422020275,1778477444000,-265.69940368,0.00010958,2]
[422020278,1778477444000,-800.79,0.00010958,2]
[422020279,1778477444000,-675.44,0.00010958,2]
[422020281,1778477444000,-500.0,0.00010958,2]
[422020280,1778477444000,-190.18587067,0.00010958,2]
[422020283,1778477444000,-500.0,0.00010958,2]
[422020277,1778477444000,-500.0,0.00010958,2]
[422020289,1778477444000,-500.0,0.00010958,2]
[422020285,1778477444000,-561.12,0.00010958,2]
[422020300,1778477444000,-424.9411352,0.00010958,2]
[422020306,1778477444000,-2.219721,0.00010958,2]
[422020292,1778477444000,-500.0,0.00010958,2]
[422020294,1778477444000,-500.0,0.00010958,2]
[422020291,1778477444000,-725.8,0.00010958,2]
[422020303,1778477444000,-500.0,0.00010958,2]
[422020312,1778477444000,-500.0,0.00010958,2]
[422020310,1778477444000,-497.780279,0.00010958,2]
[422020314,1778477444000,-577.42,0.00010958,2]
[422020317,1778477444000,-315.8217555,0.00010958,2]
[422020320,1778477444000,-500.68,0.00010958,2]
[422020297,1778477444000,-75.0588648,0.00010958,2]
[422020744,1778477447000,-800.79,0.00011232,2]
[422020742,1778477447000,-500.0,0.00011232,2]
[422020740,1778477447000,-3930.13,0.00011232,2]
[422020724,1778477447000,-527.20186942,0.00011232,2]
[422020736,1778477447000,-500.0,0.00011232,2]
[422020721,1778477447000,-500.0,0.00011232,2]
[422020727,1778477447000,-500.0,0.00011232,2]
[422020746,1778477447000,-675.44,0.00011232,2]
[422020723,1778477447000,-450.52870185,0.00011232,2]
[422020738,1778477447000,-668.9,0.00011232,2]
[422020754,1778477447000,-500.0,0.00011232,2]
[422020752,1778477447000,-561.12,0.00011232,2]
[422020748,1778477447000,-500.0,0.00011232,2]
[422020759,1778477447000,-500.0,0.00011232,2]
[422020757,1778477447000,-725.8,0.00011232,2]
[422020750,1778477447000,-500.0,0.00011232,2]
[422020763,1778477447000,-500.0,0.00011232,2]
[422020765,1778477447000,-500.0,0.00011232,2]
[422020761,1778477447000,-500.0,0.00011232,2]
[422020767,1778477447000,-500.0,0.00011232,2]
[422020779,1778477447000,-500.0,0.00011232,2]
[422020734,1778477447000,-551.89,0.00011232,2]
[422020755,1778477447000,-500.0,0.00011232,2]
[422020730,1778477447000,-863.61,0.00011232,2]
[422020690,1778477447000,-304.79856313,0.00010958,2]
[422020732,1778477447000,-500.0,0.00011232,2]
[422020777,1778477447000,-711.2,0.00011232,2]
[422020676,1778477447000,-79.6082445,0.00010958,2]
[422020678,1778477447000,-500.0,0.00010958,2]
[422020680,1778477447000,-711.2,0.00010958,2]
[422020682,1778477447000,-500.0,0.00010958,2]
[422020684,1778477447000,-500.0,0.00010958,2]
[422020686,1778477447000,-500.0,0.00010958,2]
[422020687,1778477447000,-792.41,0.00010958,2]
[422020691,1778477447000,-500.0,0.00010958,2]
[422020694,1778477447000,-500.0,0.00010958,2]
[422020696,1778477447000,-546.71983489,0.00010958,2]
[422020707,1778477447000,-160.0,0.00011128,2]
[422020703,1778477447000,-557.5788265,0.00011114,2]
[422020697,1778477447000,-22176.1816168,0.00010958,2]
[422020701,1778477447000,-537.6845,0.00011059,2]
[422020700,1778477447000,-201.43471339,0.00010959,2]
[422020709,1778477447000,-161.621689,0.00011128,2]
[422020705,1778477447000,-160.0,0.00011128,2]
[422020715,1778477447000,-500.0,0.00011232,2]
[422020711,1778477447000,-578.20924308,0.00011169,2]